bitfinex/quotes_SOLUSD_20220311
["timestamp","ask_amount","ask_price","bid_price","bid_amount"]
[1647004681745,31.03199181,82.896,82.78,14.42]
[1647004681943,48.40358794,82.895,82.781,37.87971001]
[1647004682142,14.42,82.89,82.781,37.87971001]
[1647004682342,6.035,82.889,82.781,37.87971001]
[1647004682844,9.07947957,82.889,82.781,37.87971001]
[1647004683243,3.04447957,82.888,82.782,0.0749]
[1647004683443,6.035,82.887,82.782,0.0749]
[1647004683844,3.04447957,82.886,82.782,0.0749]
[1647004684245,48.40358794,82.895,82.782,0.0749]
[1647004684445,47.90358794,82.895,82.782,0.0749]
[1647004684651,47.90358794,82.895,82.783,3.04447957]
[1647004684945,47.90358794,82.895,82.784,6.0]
[1647004685347,3.04447957,82.904,82.784,9.04447957]
[1647004685549,6.035,82.898,82.785,5.50458258]
[1647004685749,6.035,82.898,82.786,6.0]
[1647004685950,24.9535,82.913,82.8,14.42]
[1647004686154,6.035,82.945,82.801,6.0]
[1647004686349,54.03997184,82.932,82.803,4.15660448]
[1647004686549,3.04447957,82.925,82.804,6.0]
[1647004686751,6.034,82.924,82.804,6.0]
[1647004686949,3.04447957,82.898,82.802,48.02332955]
[1647004687150,52.06913188,82.897,82.802,48.02332955]
[1647004687550,18.1077,82.89,82.802,48.02332955]
[1647004687751,3.04447957,82.896,82.802,48.02332955]
[1647004688151,3.04447957,82.889,82.802,48.02332955]
[1647004688351,72.05,82.887,82.802,48.02332955]
[1647004688550,20.44782854,82.879,82.802,48.02332955]
[1647004688950,72.05,82.878,82.802,48.02332955]
[1647004689152,20.44782854,82.879,82.802,48.02332955]
[1647004689352,20.44782854,82.879,82.803,0.0749]
[1647004689553,18.1115,82.87,82.803,0.0749]
[1647004689760,6.035,82.869,82.803,0.0749]
[1647004689954,72.05,82.868,82.803,0.0749]
[1647004690152,192.25,82.865,82.803,0.0749]
[1647004690353,192.25,82.859,82.803,0.0749]
[1647004690554,192.25,82.857,82.803,0.0749]
[1647004690753,192.25,82.855,82.803,0.0749]
[1647004690953,18.1175,82.85,82.803,0.0749]
[1647004691153,72.05,82.853,82.803,0.0749]
[1647004691556,6.035,82.852,82.803,0.0749]
[1647004691753,72.05,82.851,82.803,0.0749]
[1647004691954,120.2,82.846,82.803,0.0049]
[1647004692153,192.25,82.839,82.803,0.0049]
[1647004692553,192.25,82.837,82.803,0.0049]
[1647004692753,5.89922263,82.834,82.803,0.0049]
[1647004692954,192.25,82.819,82.803,0.0049]
[1647004693155,120.2,82.805,82.683,4.73258]
[1647004693455,72.05,82.794,82.684,54.15609003]
[1647004693655,72.05,82.794,82.685,6.043]
[1647004693860,3.04447957,82.793,82.685,6.043]
[1647004694155,92.27678071,82.768,82.684,54.15609003]
[1647004695156,72.05,82.759,82.684,54.15609003]
[1647004695354,72.05,82.759,82.67,6.043]
[1647004695558,72.05,82.755,82.639,6.043]
[1647004695757,72.05,82.753,82.639,6.043]
[1647004696160,72.05,82.749,82.631,78.1226]
[1647004696458,72.05,82.743,82.64,53.96511046]
[1647004696660,58.33617971,82.748,82.64,53.96511046]
[1647004696661,192.25,82.729,82.641,6.046]
[1647004696963,72.05,82.719,82.611,6.047]
[1647004697159,120.2,82.714,82.611,6.047]
[1647004697360,72.05,82.709,82.587,73.2817]
[1647004697558,72.05,82.709,82.588,6.049]
[1647004697759,72.05,82.709,82.588,31.59444334]
[1647004697959,72.05,82.707,82.589,58.16177329]
[1647004698158,72.05,82.707,82.59,6.049]
[1647004698558,72.05,82.705,82.59,6.049]
[1647004698758,72.05,82.703,82.59,6.049]
[1647004698961,72.05,82.699,82.59,18.1481]
[1647004699159,72.05,82.697,82.59,43.69354334]
[1647004699359,20.22678071,82.695,82.59,43.69354334]
[1647004699559,6.05,82.694,82.59,43.69354334]
[1647004699759,6.05,82.694,82.59,18.1481]
[1647004699959,20.22678071,82.695,82.591,147.56135876]
[1647004700159,20.22678071,82.695,82.62,18.1412]
[1647004700360,20.22678071,82.695,82.622,27.74126627]
[1647004703859,18.1449,82.71,82.622,27.74126627]
[1647004704059,6.048,82.725,82.63,18.1396]
[1647004704265,27.39187957,82.726,82.631,6.047]
[1647004704465,24.3474,82.726,82.632,126.2]
[1647004704661,6.047,82.745,82.632,129.24447957]
[1647004704862,56.78389081,82.75,82.632,182.15128167]
[1647004705063,56.78389081,82.75,82.634,120.2]
[1647004705262,3.04447957,82.77,82.636,178.36177329]
[1647004705463,70.9427,82.775,82.651,120.2]
[1647004705665,6.043,82.774,82.652,4.39228562]
[1647004705863,6.043,82.774,82.653,6.0]
[1647004706162,6.043,82.774,82.654,120.2]
[1647004706163,72.05,82.773,82.654,120.2]
[1647004706363,72.05,82.773,82.653,9.04447957]
[1647004706364,126.37874112,82.771,82.656,27.74126627]
[1647004706562,72.05,82.769,82.656,27.74126627]
[1647004706765,72.05,82.759,82.656,27.74126627]
[1647004706964,72.05,82.757,82.656,27.74126627]
[1647004707162,72.05,82.755,82.656,27.74126627]
[1647004707362,72.05,82.755,82.657,126.245]
[1647004707562,72.05,82.755,82.657,6.045]
[1647004707791,75.09447957,82.755,82.656,27.74126627]
[1647004707964,192.25,82.743,82.656,27.74126627]
[1647004708167,72.05,82.741,82.656,27.74126627]
[1647004708564,71.55,82.741,82.657,120.2]
[1647004708963,54.32874112,82.742,82.657,120.2]
[1647004709164,54.32874112,82.742,82.661,120.2]
[1647004710066,72.05,82.76,82.661,120.2]
[1647004710269,72.05,82.76,82.663,120.2]
[1647004710468,72.05,82.758,82.663,120.2]
[1647004710864,51.75268456,82.757,82.663,120.2]
[1647004711065,72.05,82.756,82.671,48.24270023]
[1647004712365,51.75268456,82.757,82.671,48.24270023]
[1647004712366,72.05,82.749,82.671,48.24270023]
[1647004713269,72.05,82.747,82.671,48.24270023]
[1647004713470,72.05,82.745,82.671,48.24270023]
[1647004713670,20.76427586,82.744,82.671,48.24270023]
[1647004714070,72.05,82.765,82.672,120.2]
[1647004714270,6.043,82.764,82.672,120.2]
[1647004714472,72.05,82.774,82.681,120.2]
[1647004715071,72.05,82.772,82.685,120.2]
[1647004715271,72.05,82.772,82.684,37.66033933]
[1647004715470,176.37917114,82.773,82.684,37.66033933]
[1647004715471,18.1349,82.75,82.684,37.66033933]
[1647004715672,16.33778928,82.749,82.684,37.66033933]
[1647004716073,72.05,82.766,82.684,37.66033933]
[1647004716673,72.05,82.766,82.69,18.1278]
[1647004716879,41.54024264,82.744,82.684,37.66033933]
[1647004717078,97.84095665,82.743,82.684,37.66033933]
[1647004717474,72.05,82.739,82.684,37.66033933]
[1647004717674,18.1387,82.73,82.684,37.66033933]
[1647004717874,72.05,82.729,82.684,37.66033933]
[1647004718075,46.72600377,82.728,82.684,37.66033933]
[1647004718474,41.54024264,82.744,82.684,37.66033933]
[1647004718873,72.05,82.743,82.684,37.66033933]
[1647004719073,72.05,82.739,82.684,37.66033933]
[1647004719476,72.05,82.737,82.684,37.66033933]
[1647004720175,64.0794519,82.738,82.684,37.66033933]
[1647004720579,41.54024264,82.744,82.684,37.66033933]
[1647004721581,56.30678476,82.743,82.684,37.66033933]
[1647004721982,41.54024264,82.744,82.684,37.66033933]
[1647004722188,41.54024264,82.744,82.685,120.2]
[1647004722583,41.54024264,82.744,82.686,3.04447957]
[1647004723003,47.0452,82.775,82.688,120.2]
[1647004723405,47.0452,82.775,82.691,120.2]
[1647004723605,6.043,82.796,82.691,120.2]
[1647004723805,6.042,82.797,82.692,3.04447957]
[1647004724004,57.32530237,82.796,82.692,3.04447957]
[1647004724303,78.092,82.795,82.692,3.04447957]
[1647004724905,6.042,82.795,82.701,120.2]
[1647004725104,48.0439,82.82,82.702,6.0]
[1647004725304,72.05,82.819,82.711,120.2]
[1647004725505,72.05,82.811,82.71,14.42]
[1647004725705,72.05,82.801,82.71,14.42]
[1647004725904,72.05,82.779,82.711,6.70245759]
[1647004726107,72.05,82.777,82.711,6.70245759]
[1647004726705,51.42596986,82.778,82.711,6.70245759]
[1647004726907,72.05,82.777,82.711,6.70245759]
[1647004727706,78.092,82.777,82.711,6.70245759]
[1647004727907,72.05,82.777,82.711,6.70245759]
[1647004728107,51.42596986,82.778,82.711,6.70245759]
[1647004728308,51.42596986,82.778,82.72,18.1222]
[1647004728707,23.5553,82.809,82.72,18.1222]
[1647004729108,72.05,82.808,82.72,18.1222]
[1647004729509,72.05,82.799,82.72,18.1222]
[1647004729709,72.05,82.797,82.72,18.1222]
[1647004730709,18.1237,82.79,82.72,18.1222]
[1647004731111,72.05,82.797,82.711,6.70245759]
[1647004731311,120.2,82.782,82.711,6.70245759]
[1647004731512,72.05,82.779,82.711,6.70245759]
[1647004731913,72.05,82.769,82.711,6.70245759]
[1647004732316,18.1281,82.77,82.711,6.70245759]
[1647004732520,47.66749051,82.78,82.711,6.70245759]
[1647004732914,18.1304,82.76,82.711,6.70245759]
[1647004733116,47.66749051,82.78,82.711,6.70245759]
[1647004735120,65.79489051,82.78,82.711,6.70245759]
[1647004735617,72.05,82.779,82.711,6.70245759]
[1647004736721,18.1277,82.77,82.711,6.70245759]
[1647004740020,50.99607381,82.759,82.711,6.70245759]
[1647004740223,50.99607381,82.759,82.7,18.1277]
[1647004740422,72.05,82.758,82.682,23.6281]
[1647004740621,72.05,82.758,82.69,18.1303]
[1647004740821,18.1359,82.73,82.64,14.42]
[1647004741223,18.1359,82.73,82.648,17.8197]
[1647004741422,47.76887674,82.729,82.66,44.21057851]
[1647004741624,72.05,82.728,82.66,62.34747851]
[1647004741824,72.05,82.728,82.66,44.21057851]
[1647004742026,72.05,82.719,82.66,44.21057851]
[1647004743023,72.05,82.728,82.66,44.21057851]
[1647004745126,72.05,82.728,82.66,62.34767851]
[1647004747128,18.1377,82.72,82.66,62.34767851]
[1647004748629,72.05,82.739,82.661,120.2]
[1647004748831,6.046,82.75,82.661,120.2]
[1647004749058,78.095,82.755,82.68,18.1311]
[1647004749231,72.05,82.755,82.68,18.1311]
[1647004749633,50.04247195,82.75,82.68,18.1311]
[1647004749831,72.05,82.755,82.68,18.1311]
[1647004750232,23.9038,82.768,82.68,18.1311]
[1647004750437,27.37440518,82.775,82.681,120.2]
[1647004750632,6.043,82.794,82.691,120.2]
[1647004750832,54.71507583,82.793,82.701,120.2]
[1647004751433,72.05,82.792,82.702,3.04447957]
[1647004751635,18.1307,82.76,82.692,48.516]
[1647004751833,59.34212723,82.778,82.692,48.516]
[1647004752034,78.093,82.777,82.692,48.516]
[1647004752434,72.05,82.775,82.692,48.516]
[1647004752634,78.093,82.775,82.692,48.516]
[1647004752837,72.05,82.773,82.692,48.516]
[1647004753234,72.05,82.771,82.692,48.516]
[1647004753634,48.65068612,82.759,82.7,18.129]
[1647004754238,72.05,82.758,82.66,122.71577851]
[1647004754536,27.37440518,82.757,82.661,47.0525]
[1647004754836,129.05284175,82.729,82.661,59.2537783]
[1647004755036,129.05284175,82.729,82.661,47.0525]
[1647004755238,129.05284175,82.729,82.66,44.21057851]
[1647004755839,18.1387,82.72,82.66,62.34867851]
[1647004757038,129.05284175,82.729,82.66,62.34867851]
[1647004757643,6.046,82.739,82.661,120.2]
[1647004757839,22.6425,82.751,82.68,18.1339]
[1647004758038,24.6446,82.767,82.681,120.2]
[1647004758039,6.043,82.765,82.681,120.2]
[1647004758242,24.6446,82.767,82.681,120.2]
[1647004758438,24.6446,82.767,82.671,48.7459]
[1647004758439,24.6446,82.767,82.691,120.2]
[1647004758840,24.6446,82.767,82.701,120.2]
[1647004759839,24.6446,82.767,82.69,74.8339]
[1647004759840,24.6446,82.767,82.691,120.2]
[1647004760239,24.6446,82.767,82.71,18.1254]
[1647004761047,24.5019,82.788,82.711,120.2]
[1647004762144,24.5019,82.788,82.72,18.1218]
[1647004762347,99.42440518,82.787,82.7,14.42]
[1647004762547,72.05,82.783,82.68,14.42]
[1647004762747,120.2,82.762,82.671,48.7459]
[1647004762946,120.2,82.748,82.66,51.21057851]
[1647004763147,120.2,82.746,82.66,51.21057851]
[1647004763450,129.84779029,82.729,82.661,12.22229108]
[1647004763649,129.84779029,82.729,82.66,44.21057851]
[1647004764072,132.89226986,82.729,82.66,44.21057851]
[1647004764469,129.84779029,82.729,82.66,68.34947851]
[1647004765571,18.137,82.72,82.66,68.34947851]
[1647004766873,72.05,82.719,82.66,50.21057851]
[1647004767075,18.1428,82.71,82.66,6.0]
[1647004767274,18.1428,82.71,82.646,24.8024]
[1647004767475,18.1428,82.71,82.645,73.9535]
[1647004767773,18.1428,82.71,82.647,12.22287179]
[1647004767977,72.05,82.718,82.65,18.1416]
[1647004768176,24.8503,82.728,82.652,120.2]
[1647004769277,63.45108478,82.727,82.652,120.2]
[1647004769476,18.1373,82.72,82.66,18.1389]
[1647004770080,18.1373,82.72,82.661,120.2]
[1647004770281,24.8503,82.728,82.661,120.2]
[1647004770480,24.8503,82.728,82.68,18.1337]
[1647004770680,24.6386,82.733,82.68,18.1337]
[1647004771381,51.5043482,82.734,82.681,0.89928045]
[1647004772282,51.5043482,82.734,82.69,18.1326]
[1647004772482,18.131,82.75,82.69,18.1326]
[1647004773481,18.1326,82.74,82.69,18.1326]
[1647004774885,18.135,82.73,82.681,0.89928045]
[1647004775087,58.59859456,82.729,82.681,0.89928045]
[1647004775686,58.59859456,82.729,82.664,24.5118]
[1647004775890,18.1368,82.72,82.664,24.5118]
[1647004776091,18.1368,82.72,82.66,18.1392]
[1647004776691,18.1368,82.72,82.661,38.34535899]
[1647004777496,18.1368,82.72,82.67,18.1375]
[1647004777792,58.59859456,82.729,82.67,18.1375]
[1647004778195,18.1354,82.73,82.67,18.1375]
[1647004778595,23.927,82.738,82.671,120.2]
[1647004778896,23.927,82.738,82.69,18.1329]
[1647004779101,18.1335,82.74,82.69,18.1329]
[1647004779292,18.1335,82.74,82.671,120.2]
[1647004779293,49.76843699,82.749,82.691,6.01743793]
[1647004779699,18.1298,82.76,82.691,6.01743793]
[1647004779897,18.1298,82.76,82.7,18.1288]
[1647004780496,72.05,82.768,82.7,18.1288]
[1647004780696,54.00394164,82.759,82.7,18.1288]
[1647004780896,18.1315,82.75,82.7,18.1288]
[1647004786404,18.1286,82.76,82.7,18.1288]
[1647004786608,72.05,82.769,82.7,18.1288]
[1647004787806,18.1283,82.76,82.7,18.1288]
[1647004788415,60.83298855,82.754,82.7,18.1288]
[1647004788608,72.05,82.769,82.7,18.1288]
[1647004789713,63.54297273,82.761,82.7,18.1288]
[1647004790109,18.1315,82.75,82.7,18.1288]
[1647004792014,18.1321,82.74,82.7,18.1288]
[1647004792211,50.51423033,82.739,82.7,18.1288]
[1647004792611,50.51423033,82.739,82.691,6.01743793]
[1647004792812,72.05,82.738,82.671,6.043]
[1647004793011,18.1348,82.73,82.667,6.045]
[1647004793412,18.1348,82.73,82.662,6.046]
[1647004793615,72.05,82.729,82.647,47.8118]
[1647004793812,88.16087457,82.729,82.648,31.22381252]
[1647004794012,18.1446,82.71,82.648,31.22381252]
[1647004794217,56.36790628,82.709,82.648,31.22381252]
[1647004794417,56.36790628,82.709,82.649,12.22395921]
[1647004795021,72.05,82.708,82.649,12.22395921]
[1647004795216,72.05,82.699,82.624,6.047]
[1647004795617,72.05,82.699,82.625,12.22801863]
[1647004796017,72.05,82.699,82.626,31.05815344]
[1647004796218,18.1472,82.68,82.63,18.1457]
[1647004796419,57.68929678,82.679,82.63,18.1457]
[1647004797221,72.05,82.697,82.63,18.1457]
[1647004797420,18.1448,82.69,82.64,18.1422]
[1647004798344,18.1458,82.68,82.631,6.048]
[1647004800147,65.57177935,82.689,82.631,12.5414233]
[1647004800545,65.57177935,82.689,82.64,18.143]
[1647004801246,65.57177935,82.689,82.631,24.3904233]
[1647004801851,65.57177935,82.689,82.64,18.1443]
[1647004802350,72.05,82.688,82.64,18.1443]
[1647004802647,18.1455,82.68,82.612,18.70959648]
[1647004803151,72.05,82.679,82.612,18.70959648]
[1647004803349,72.05,82.679,82.587,120.2]
[1647004803350,72.05,82.679,82.611,12.22717663]
[1647004803548,72.05,82.673,82.611,12.22717663]
[1647004803748,53.94320196,82.658,82.602,38.58973491]
[1647004804147,22.7244,82.674,82.603,12.22717663]
[1647004804746,22.7244,82.674,82.604,120.2]
[1647004805149,53.52212009,82.693,82.611,120.2]
[1647004805550,53.52212009,82.693,82.612,3.04447957]
[1647004805749,6.049,82.692,82.613,120.2]
[1647004806150,6.049,82.692,82.614,12.22717663]
[1647004806348,6.049,82.692,82.615,5.77306201]
[1647004806952,53.52212009,82.693,82.616,12.22717663]
[1647004807153,53.52212009,82.693,82.62,18.144]
[1647004807350,53.52212009,82.693,82.621,120.2]
[1647004807751,53.52212009,82.693,82.622,12.22717663]
[1647004808051,6.049,82.715,82.623,120.2]
[1647004808252,72.05,82.735,82.641,120.2]
[1647004808451,72.05,82.727,82.641,120.2]
[1647004808750,29.45527262,82.726,82.625,120.2]
[1647004808950,78.097,82.725,82.625,120.2]
[1647004809152,72.05,82.709,82.626,12.20928796]
[1647004809451,18.1417,82.71,82.603,24.2986]
[1647004809452,72.05,82.707,82.603,24.2986]
[1647004809651,120.2,82.7,82.603,24.2986]
[1647004809851,120.2,82.688,82.604,12.22592311]
[1647004810057,120.2,82.684,82.604,12.22592311]
[1647004810256,120.2,82.679,82.604,12.22592311]
[1647004810453,167.62971238,82.669,82.582,37.83473317]
[1647004810653,120.2,82.663,82.582,37.83473317]
[1647004810852,192.25,82.66,82.582,37.83473317]
[1647004811054,206.67,82.66,82.582,37.83473317]
[1647004811354,72.05,82.649,82.582,37.83473317]
[1647004811558,72.05,82.647,82.582,37.83473317]
[1647004812756,62.63415929,82.648,82.582,37.83473317]
[1647004813553,62.63415929,82.648,82.59,18.1541]
[1647004813755,72.05,82.66,82.59,18.1541]
[1647004813953,6.051,82.686,82.59,18.1541]
[1647004814156,48.4895,82.685,82.59,18.1541]
[1647004814357,48.4895,82.685,82.591,132.39680577]
[1647004814555,48.4895,82.685,82.611,120.2]
[1647004814760,48.4895,82.685,82.611,126.72806375]
[1647004814958,6.05,82.705,82.611,126.72806375]
[1647004815156,6.05,82.718,82.612,3.04447957]
[1647004815359,45.3885143,82.806,82.612,3.04447957]
[1647004815360,6.05,82.739,82.614,120.2]
[1647004815559,6.047,82.745,82.615,4.75091136]
[1647004815756,47.26974062,82.738,82.621,120.2]
[1647004815956,47.26974062,82.738,82.631,148.43771126]
[1647004816160,72.05,82.737,82.641,120.2]
[1647004816360,72.05,82.737,82.64,14.42]
[1647004816560,72.05,82.729,82.637,120.2]
[1647004816760,72.05,82.727,82.651,9.33508566]
[1647004816961,47.90762579,82.724,82.651,9.33508566]
[1647004817364,6.046,82.723,82.651,9.33508566]
[1647004817770,6.046,82.723,82.66,18.1389]
[1647004817965,192.25,82.72,82.651,9.33508566]
[1647004818162,72.05,82.718,82.633,23.4668]
[1647004818363,72.05,82.716,82.633,23.4668]
[1647004818562,192.25,82.71,82.611,21.23347957]
[1647004818763,72.05,82.708,82.614,23.4668]
[1647004818966,72.05,82.699,82.63,18.1454]
[1647004819162,72.05,82.699,82.623,120.2]
[1647004819163,58.05392936,82.698,82.631,27.72368318]
[1647004819964,58.05392936,82.698,82.631,30.76816275]
[1647004820167,24.1887,82.72,82.65,18.139]
[1647004820374,72.05,82.719,82.65,18.139]
[1647004820569,72.05,82.709,82.633,23.9608]
[1647004820763,72.05,82.707,82.633,23.9608]
[1647004821163,72.05,82.705,82.633,23.9608]
[1647004821365,6.048,82.704,82.633,23.9608]
[1647004821868,18.147,82.7,82.633,23.9608]
[1647004822872,72.05,82.705,82.64,18.1434]
[1647004824092,56.49761797,82.706,82.641,120.2]
[1647004824468,56.49761797,82.706,82.66,18.1367]
[1647004824668,56.49761797,82.706,82.661,9.84911374]
[1647004824872,6.047,82.73,82.662,120.2]
[1647004825069,6.047,82.758,82.662,120.2]
[1647004825268,72.05,82.771,82.661,9.84911374]
[1647004825269,120.2,82.77,82.671,120.2]
[1647004825470,120.2,82.77,82.69,18.1268]
[1647004825471,72.05,82.769,82.69,18.1268]
[1647004825670,47.9308,82.771,82.672,49.5772]
[1647004825671,72.05,82.767,82.672,49.5772]
[1647004825867,72.05,82.763,82.672,49.5772]
[1647004826068,72.05,82.761,82.672,49.5772]
[1647004826468,72.05,82.759,82.681,27.72368318]
[1647004826671,6.043,82.758,82.681,27.72368318]
[1647004826875,6.043,82.763,82.681,27.72368318]
[1647004827070,55.34746883,82.764,82.681,27.72368318]
[1647004827271,55.34746883,82.764,82.682,3.04447957]
[1647004827871,55.34746883,82.764,82.69,18.1318]
[1647004828072,55.34746883,82.764,82.69,24.1318]
[1647004829073,55.34746883,82.764,82.69,18.1318]
[1647004831900,55.34746883,82.764,82.69,24.1318]
[1647004832101,72.05,82.763,82.69,24.1318]
[1647004832498,55.34746883,82.764,82.69,18.1318]
[1647004832900,55.34746883,82.764,82.69,24.1318]
[1647004833308,55.34746883,82.764,82.7,18.1284]
[1647004833505,55.34746883,82.764,82.701,9.84911374]
[1647004834504,55.34746883,82.764,82.71,18.1282]
[1647004836608,18.1303,82.76,82.701,9.84911374]
[1647004837006,55.34746883,82.764,82.701,9.84911374]
[1647004837808,55.34746883,82.764,82.71,18.1285]
[1647004839810,47.9308,82.771,82.71,18.1285]
[1647004840712,56.71588018,82.77,82.701,9.84911374]
[1647004840911,72.05,82.769,82.701,9.84911374]
[1647004841112,72.05,82.769,82.691,6.043]
[1647004841113,18.1344,82.74,82.691,6.043]
[1647004841312,72.05,82.767,82.691,6.043]
[1647004841510,72.05,82.765,82.691,6.043]
[1647004841711,72.05,82.763,82.691,6.043]
[1647004842210,72.05,82.761,82.692,26.67045669]
[1647004842616,13.34700882,82.764,82.692,26.67045669]
[1647004842813,62.75888018,82.77,82.7,18.1308]
[1647004843017,56.71588018,82.77,82.7,18.1308]
[1647004845212,74.84348018,82.77,82.7,18.1308]
[1647004846717,72.05,82.769,82.7,18.1308]
[1647004846918,78.093,82.769,82.692,26.67045669]
[1647004847318,72.05,82.767,82.692,26.67045669]
[1647004848119,72.05,82.765,82.692,26.67045669]
[1647004848321,72.05,82.763,82.692,26.67045669]
[1647004848724,18.1326,82.75,82.692,26.67045669]
[1647004848922,72.05,82.763,82.692,26.67045669]
[1647004849324,72.05,82.766,82.692,26.67045669]
[1647004849525,72.05,82.764,82.692,26.67045669]
[1647004849723,18.1326,82.75,82.692,26.67045669]
[1647004849923,61.12719689,82.749,82.692,26.67045669]
[1647004851026,6.043,82.759,82.7,18.1313]
[1647004851230,6.043,82.77,82.7,18.1313]
[1647004851824,24.1714,82.77,82.7,18.1313]
[1647004852024,53.27926055,82.769,82.7,18.1313]
[1647004853226,53.27926055,82.769,82.7,35.8662]
[1647004854227,53.27926055,82.769,82.7,50.2862]
[1647004855529,18.1265,82.78,82.7,50.2862]
[1647004856435,1.63334434,82.796,82.701,3.04447957]
[1647004856633,56.39626302,82.804,82.71,18.1149]
[1647004856830,56.39626302,82.804,82.721,10.90234023]
[1647004857029,56.39626302,82.804,82.73,14.42]
[1647004857629,56.39626302,82.804,82.731,6.0]
[1647004859353,56.39626302,82.804,82.732,6.041]
[1647004859551,56.39626302,82.804,82.733,6.0]
[1647004859753,6.041,82.829,82.734,32.71045669]
[1647004859954,6.041,82.829,82.735,55.2992]
[1647004860156,6.041,82.829,82.736,6.039]
[1647004860353,6.041,82.829,82.74,14.42]
[1647004860554,6.041,82.829,82.76,18.1148]
[1647004860755,50.37566727,82.828,82.761,10.90234023]
[1647004860954,6.039,82.827,82.761,10.90234023]
[1647004861659,6.039,82.836,82.78,18.1131]
[1647004861857,53.7573,82.865,82.79,14.42]
[1647004862054,47.7193,82.865,82.791,6.0]
[1647004862456,47.7193,82.865,82.81,18.1044]
[1647004862658,47.7193,82.865,82.811,10.90234023]
[1647004863355,47.7193,82.865,82.812,6.0]
[1647004863755,47.7193,82.865,82.811,10.90234023]
[1647004863954,47.7193,82.865,82.812,6.0]
[1647004865156,6.035,82.879,82.82,18.1049]
[1647004865359,6.035,82.894,82.821,6.0]
[1647004865558,6.034,82.898,82.82,20.3]
[1647004866158,61.75064716,82.899,82.821,6.0]
[1647004866360,61.75064716,82.899,82.84,18.0976]
[1647004866561,61.75064716,82.899,82.841,26.67045669]
[1647004866763,0.04344537,82.899,82.841,26.67045669]
[1647004866957,6.033,82.898,82.841,26.67045669]
[1647004867160,0.04344537,82.899,82.841,26.67045669]
[1647004868258,0.04344537,82.899,82.85,18.0967]
[1647004869162,0.04344537,82.899,82.85,32.5167]
[1647004869365,0.04344537,82.899,82.851,6.0]
[1647004869560,0.04344537,82.899,82.86,18.0808]
[1647004869761,0.04344537,82.899,82.87,14.42]
[1647004870160,0.04344537,82.899,82.871,54.2316]
[1647004870362,0.00344537,82.899,82.871,54.2316]
[1647004870760,0.00344537,82.899,82.88,18.0803]
[1647004870963,0.00344537,82.899,82.89,14.42]
[1647004871563,0.00344537,82.899,82.882,24.6949]
[1647004872863,6.032,82.99,82.884,125.0]
[1647004873065,6.027,82.999,82.89,18.0759]
[1647004873266,6.027,82.999,82.9,14.42]
[1647004873470,6.027,82.99,82.901,12.027]
[1647004873769,19.55775312,83.024,82.901,12.027]
[1647004873770,6.027,82.999,82.901,12.027]
[1647004873970,6.027,82.999,82.91,18.0751]
[1647004874169,6.027,82.992,82.92,14.42]
[1647004874375,6.027,83.023,82.92,14.42]
[1647004874573,6.027,83.023,82.921,34.49507386]
[1647004874772,6.026,83.047,82.921,34.49507386]
[1647004874970,6.24010495,83.039,82.922,6.0]
[1647004875172,6.026,83.038,82.923,6.026]
[1647004875378,29.9722,83.049,82.923,6.026]
[1647004875572,50.43872751,83.011,82.924,6.0]
[1647004875772,50.43872751,83.011,82.925,6.026]
[1647004875973,18.0712,83.04,82.926,6.0]
[1647004876173,6.026,83.039,82.94,14.42]
[1647004876372,6.026,83.048,82.95,18.0687]